bitfinex-derivatives/quotes_SOLF0:USTF0_20250905
["timestamp","ask_amount","ask_price","bid_price","bid_amount"]
[1757106529481,7.76,205.06,205.02,7.6]
[1757106529685,7.76,205.06,204.99,7.6]
[1757106530188,7.76,205.04,204.99,7.6]
[1757106530487,9.88994376,205.05,204.99,7.6]
[1757106531182,7.76,205.14,204.99,7.6]
[1757106531384,9.88994376,205.07,204.99,7.6]
[1757106532889,9.88994376,205.07,205.01,7.6]
[1757106533588,7.76,205.07,205.01,7.6]
[1757106535491,2.12994376,205.1,205.03,7.6]
[1757106537086,9.88994376,205.11,205.03,7.6]
[1757106537286,7.76,205.11,205.05,7.6]
[1757106538191,7.76,205.11,205.07,7.6]
[1757106539391,7.76,205.12,205.07,7.6]
[1757106539887,2.12994376,205.13,205.07,7.6]
[1757106540385,9.88994376,205.15,205.08,7.6]
[1757106543096,7.76,205.15,205.08,7.6]
[1757106543295,9.88994376,205.15,205.08,7.6]
[1757106543491,7.76,205.15,205.08,7.6]
[1757106543692,9.88994376,205.15,205.08,7.6]
[1757106550501,7.76,205.12,205.07,7.6]
[1757106550700,7.76,205.19,205.11,7.6]
[1757106551002,9.88994376,205.17,205.11,7.6]
[1757106552596,2.12994376,205.15,205.08,7.6]
[1757106552802,2.12994376,205.13,205.08,7.6]
[1757106553097,7.76,205.12,205.08,7.6]
[1757106553502,2.12994376,205.13,205.08,7.6]
[1757106554193,7.76,205.12,205.08,7.6]
[1757106554796,2.12994376,205.13,205.08,7.6]
[1757106555198,7.76,205.12,205.08,7.6]
[1757106555902,2.12994376,205.13,205.08,7.6]
[1757106556499,7.76,205.12,205.08,7.6]
[1757106556693,2.12994376,205.13,205.08,7.6]
[1757106556900,7.76,205.12,205.08,7.6]
[1757106557098,2.12994376,205.13,205.08,7.6]
[1757106557299,7.76,205.12,205.05,9.72994376]
[1757106557496,2.12994376,205.07,205.01,9.72994376]
[1757106557701,9.88994376,205.08,205.01,9.72994376]
[1757106558209,9.88994376,205.08,205.01,7.6]
[1757106558407,2.12994376,205.06,205.0,7.56]
[1757106559516,8.07,205.07,205.0,7.56]
[1757106559812,11.40269323,205.12,205.0,7.56]
[1757106560012,8.07,205.12,205.0,7.56]
[1757106560314,8.07,205.12,205.02,7.56]
[1757106562009,3.33269323,205.11,205.02,7.56]
[1757106562207,8.07,205.1,205.02,7.56]
[1757106562910,3.33269323,205.08,204.99,7.56]
[1757106563109,8.07,205.07,204.99,7.56]
[1757106565810,8.07,205.05,204.95,7.56]
[1757106566514,3.33269323,205.08,204.92,4.09044889]
[1757106566515,3.33269323,205.08,204.97,7.56]
[1757106566715,8.07,205.09,205.0,7.56]
[1757106574111,8.07,205.09,205.0,10.89269323]
[1757106574316,8.07,205.09,205.01,7.56]
[1757106575311,8.07,205.09,204.98,7.56]
[1757106575511,8.07,205.06,204.98,7.56]
[1757106577318,8.07,205.06,204.94,7.56]
[1757106577523,8.07,205.03,204.94,7.56]
[1757106590836,7.45,205.01,204.94,7.56]
[1757106591335,7.45,205.01,204.91,8.02]
[1757106602846,7.45,205.01,204.91,4.3918]
[1757106603043,7.45,205.01,204.92,8.02]
[1757106604349,7.45,205.01,204.94,8.02]
[1757106612555,7.45,205.01,204.94,12.4111]
[1757106612741,7.45,205.06,204.94,8.02]
[1757106613048,3.33269323,205.01,204.91,8.02]
[1757106613255,7.45,205.0,204.91,8.02]
[1757106613645,7.45,205.0,204.92,8.02]
[1757106616443,7.45,205.0,204.88,8.02]
[1757106617455,7.45,204.97,204.88,8.02]
[1757106621455,2.13488703,204.95,204.88,10.15488703]
[1757106621655,7.91,204.94,204.88,10.15488703]
[1757106622454,7.91,204.94,204.88,8.02]
[1757106622654,7.91,204.94,204.88,10.15488703]
[1757106626961,7.91,204.94,204.9,2.13488703]
[1757106627154,7.91,204.94,204.9,9.57488703]
[1757106627349,2.13488703,204.95,204.9,9.57488703]
[1757106627653,7.91,204.94,204.91,7.44]
[1757106628161,7.91,204.94,204.9,2.13488703]
[1757106628356,7.91,204.94,204.91,7.44]
[1757106628556,7.91,204.94,204.9,2.13488703]
[1757106629157,7.91,204.94,204.91,7.44]
[1757106629661,7.91,204.97,204.86,0.84935017]
[1757106629857,7.91,204.91,204.86,8.28935017]
[1757106630161,7.91,204.91,204.84,9.57488703]
[1757106630365,7.91,204.91,204.84,7.44]
[1757106630562,7.91,204.91,204.84,9.57488703]
[1757106631964,7.91,204.94,204.86,2.13488703]
[1757106632260,7.91,204.92,204.84,9.57488703]
[1757106632461,2.13488703,204.91,204.84,9.57488703]
[1757106635063,7.91,204.9,204.84,9.57488703]
[1757106635260,7.91,204.9,204.79,4.94005827]
[1757106635261,7.91,204.9,204.8,7.44]
[1757106635460,7.91,204.9,204.83,2.13488703]
[1757106635656,7.91,204.9,204.83,9.57488703]
[1757106636659,7.91,204.88,204.83,9.57488703]
[1757106636865,2.13488703,204.89,204.83,7.44]
[1757106637059,7.91,204.88,204.83,7.44]
[1757106637260,10.04488703,204.89,204.83,7.44]
[1757106638167,7.91,204.89,204.83,7.44]
[1757106638365,10.04488703,204.89,204.83,7.44]
[1757106640763,7.91,204.99,204.85,7.44]
[1757106640967,10.04488703,204.92,204.85,7.44]
[1757106644069,10.04488703,204.95,204.88,2.13488703]
[1757106645468,10.04488703,204.95,204.87,7.44]
[1757106645870,7.91,204.92,204.87,7.44]
[1757106646167,2.13488703,204.93,204.87,7.44]
[1757106646367,7.91,204.92,204.87,7.44]
[1757106646572,2.13488703,204.93,204.87,7.44]
[1757106646768,2.13488703,204.93,204.85,2.13488703]
[1757106646968,10.04488703,204.93,204.86,7.44]
[1757106649769,10.04488703,204.93,204.87,2.13488703]
[1757106650665,2.13488703,204.97,204.9,7.99]
[1757106650874,2.13488703,204.93,204.81,7.99]
[1757106651170,7.58,204.92,204.84,7.99]
[1757106651365,2.13488703,204.87,204.8,7.99]
[1757106651764,7.58,204.9,204.82,7.99]
[1757106651966,9.71488703,204.9,204.84,7.99]
[1757106652170,7.58,204.9,204.84,7.99]
[1757106652572,7.58,204.88,204.84,7.99]
[1757106653668,2.13488703,204.89,204.84,7.99]
[1757106654064,7.58,204.88,204.82,2.13488703]
[1757106654262,7.58,204.88,204.83,7.99]
[1757106654471,7.58,204.88,204.82,2.13488703]
[1757106654668,7.58,204.88,204.83,7.99]
[1757106655574,7.58,204.88,204.82,2.13488703]
[1757106655773,7.58,204.88,204.83,7.99]
[1757106655978,7.58,204.94,204.87,7.99]
[1757106656169,7.58,204.94,204.9,2.13488703]
[1757106656369,7.58,204.96,204.9,7.99]
[1757106656565,7.58,204.96,204.93,2.13488703]
[1757106656770,7.58,205.01,204.95,2.13488703]
[1757106656967,2.13488703,205.0,204.94,7.99]
[1757106659075,2.13488703,205.0,204.94,10.12488703]
[1757106659475,9.71488703,205.01,204.94,10.12488703]
[1757106659675,9.71488703,205.01,204.94,7.99]
[1757106659875,9.71488703,205.01,204.94,10.12488703]
[1757106660774,7.58,205.02,204.97,7.99]
[1757106660970,2.13488703,205.03,204.97,7.99]
[1757106661167,7.58,205.02,204.97,7.99]
[1757106661367,2.13488703,205.03,204.97,7.99]
[1757106661576,7.58,205.02,204.97,7.99]
[1757106661770,2.13488703,205.03,204.97,7.99]
[1757106661972,7.58,205.02,204.97,7.99]
[1757106662171,2.13488703,205.03,204.97,7.99]
[1757106662373,7.58,205.02,204.97,7.99]
[1757106662774,9.71488703,205.03,204.97,7.99]
[1757106663574,7.58,205.03,204.98,2.13488703]
[1757106663875,7.58,205.03,204.99,7.99]
[1757106664971,7.58,205.06,205.0,2.13488703]
[1757106668081,7.58,205.06,204.99,7.99]
[1757106668381,7.58,205.0,204.92,7.99]
[1757106668678,2.13488703,204.98,204.92,7.99]
[1757106669081,2.13488703,204.99,204.92,7.99]
[1757106669977,2.13488703,204.97,204.92,7.99]
[1757106670282,7.58,204.96,204.92,7.99]
[1757106670483,7.58,204.94,204.88,7.99]
[1757106671376,2.13488703,204.93,204.88,7.99]
[1757106671679,7.58,204.92,204.88,7.99]
[1757106671974,2.13488703,204.93,204.88,7.99]
[1757106672180,7.58,204.92,204.88,7.99]
[1757106672778,0.03351872,204.92,204.88,8.02388043]
[1757106672981,7.58,204.9,204.88,0.03388043]
[1757106673377,2.13488703,204.91,204.88,0.03388043]
[1757106673777,7.58,204.9,204.88,0.03388043]
[1757106674380,2.13488703,204.91,204.88,0.03388043]
[1757106674579,7.58,204.9,204.88,0.03388043]
[1757106675489,2.13488703,204.91,204.88,0.03388043]
[1757106675983,7.58,204.9,204.88,0.03388043]
[1757106676181,2.13488703,204.91,204.88,0.03388043]
[1757106676373,7.58,204.9,204.88,0.03388043]
[1757106677380,2.13488703,204.91,204.88,0.03388043]
[1757106677583,7.58,204.9,204.88,0.03388043]
[1757106679483,0.03351872,204.92,204.89,7.63]
[1757106679782,8.07351872,204.92,204.89,7.63]
[1757106680880,0.03351872,204.92,204.88,0.03388043]
[1757106681184,0.03351872,204.92,204.9,7.63]
[1757106682581,0.03351872,204.92,204.88,0.03388043]
[1757106682784,0.03351872,204.92,204.89,3.33570386]
[1757106682984,0.03351872,204.92,204.9,7.63]
[1757106683284,0.03351872,204.92,204.89,3.33570386]
[1757106683484,0.03351872,204.92,204.9,7.63]
[1757106683886,0.03351872,204.92,204.89,3.33570386]
[1757106684088,0.03351872,204.92,204.88,0.03388043]
[1757106684289,0.03351872,204.92,204.88,3.36958429]
[1757106684583,0.03351872,204.92,204.89,7.63]
[1757106685286,8.07351872,204.92,204.88,7.66388043]
[1757106685886,8.07351872,204.92,204.89,7.63]
[1757106686590,8.04,204.91,204.88,7.66388043]
[1757106687692,0.03351872,204.92,204.88,0.03388043]
[1757106687894,0.03351872,204.92,204.89,7.63]
[1757106688592,8.07351872,204.92,204.89,7.63]
[1757106690701,0.03351872,204.92,204.89,7.63]
[1757106691198,0.03351872,204.92,204.88,0.03388043]
[1757106691501,0.03351872,204.92,204.88,3.36958429]
[1757106691701,0.03351872,204.92,204.89,7.63]
[1757106691902,0.03351872,204.92,204.91,10.96570386]
[1757106695906,314.34,205.06,204.91,3.33570386]
[1757106696106,8.04,205.05,204.94,3.33570386]
[1757106696407,8.04,205.05,204.95,7.63]
[1757106697204,8.04,205.05,204.98,0.03503375]
[1757106703413,3.33570386,205.04,204.98,0.03503375]
[1757106703715,8.04,205.0,204.98,0.03503375]
[1757106703911,3.33570386,205.01,204.98,0.03503375]
[1757106704508,8.04,205.0,204.98,0.03503375]
[1757106704713,3.33570386,205.04,204.98,0.03503375]
[1757106704914,8.04,205.03,204.98,0.03503375]
[1757106705920,3.33570386,205.04,204.98,0.03503375]
[1757106706321,8.04,205.03,204.98,0.03503375]
[1757106706519,3.33570386,205.04,204.98,0.03503375]
[1757106706919,8.04,205.03,204.98,0.03503375]
[1757106707520,8.04,205.0,204.98,0.03503375]
[1757106708016,3.33570386,205.01,204.98,0.03503375]
[1757106708420,7.35,205.0,204.98,0.03503375]
[1757106708819,3.33570386,205.01,204.98,0.03503375]
[1757106709520,7.35,205.0,204.98,0.03503375]
[1757106710022,3.33570386,205.01,204.98,0.03503375]
[1757106711022,7.35,205.0,204.98,0.03503375]
[1757106711214,3.33570386,205.01,204.98,0.03503375]
[1757106711618,7.35,205.0,204.89,7.69]
[1757106711820,7.35,204.96,204.89,7.69]
[1757106716018,7.35,204.99,204.89,7.69]
[1757106716225,7.35,204.99,204.92,7.69]
[1757106716931,12.81461964,205.03,204.92,7.69]
[1757106717223,7.35,205.03,204.95,7.69]
[1757106719425,3.33570386,205.07,204.97,3.33570386]
[1757106719625,7.35,205.07,204.98,7.69]
[1757106720023,7.35,205.07,205.0,3.33570386]
[1757106723029,7.35,205.07,204.98,7.69]
[1757106723225,7.35,205.07,204.95,7.69]
[1757106724528,7.35,205.07,204.97,3.33570386]
[1757106724727,5.46461964,205.1,205.01,7.69]
[1757106724928,12.81461964,205.1,205.01,7.69]
[1757106725322,7.35,205.1,205.01,7.69]
[1757106726532,7.35,205.1,205.03,0.03114245]
[1757106726832,7.35,205.07,205.03,7.72114245]
[1757106727428,7.35,205.07,205.04,7.69]
[1757106727829,0.0340805,205.08,205.06,7.69]
[1757106728035,0.0340805,205.08,205.04,7.69]
[1757106728330,0.0340805,205.08,205.03,3.36684631]
[1757106728731,0.0340805,205.08,205.04,7.69]
[1757106728934,7.35,205.07,205.04,7.69]
[1757106729928,7.35,205.07,205.03,0.03114245]
[1757106730432,0.0340805,205.08,205.03,0.03114245]
[1757106731128,7.35,205.07,205.03,0.03114245]
[1757106731625,10.68570386,205.07,205.03,0.03114245]
[1757106733134,3.33570386,205.07,205.03,0.03114245]
[1757106734331,7.35,205.06,205.03,0.03114245]
[1757106735735,7.35,205.06,205.03,7.72114245]
[1757106738740,7.6340805,205.08,205.03,7.72114245]
[1757106739245,7.6,205.07,205.03,7.72114245]
[1757106746846,7.6,205.07,205.03,7.91114245]
[1757106747043,7.6,205.07,205.03,0.03114245]
[1757106747243,7.6,205.07,205.03,7.91114245]
[1757106747545,7.6,205.07,205.04,7.88]
[1757106748045,7.6,205.07,205.04,10.01215937]
[1757106748748,7.6,205.07,205.05,7.88]
[1757106749047,0.0340805,205.08,205.05,7.88]
[1757106749547,0.0340805,205.08,205.07,7.88]
[1757106751551,0.0340805,205.08,205.07,8.36]
[1757106751749,7.6,205.17,205.07,8.36]
[1757106751945,9.73215937,205.17,205.08,2.13215937]
[1757106752348,2.13215937,205.15,205.08,2.13215937]
[1757106752551,7.6,205.14,205.08,2.13215937]
[1757106752952,9.73215937,205.15,205.09,0.03084327]
[1757106754149,7.59677901,205.18,205.1,10.01215937]
[1757106754344,2.13215937,205.16,205.1,10.01215937]
[1757106754654,7.6,205.15,205.1,10.01215937]
[1757106754848,2.13215937,205.16,205.1,10.01215937]
[1757106755153,7.6,205.15,205.1,10.01215937]
[1757106756450,2.13215937,205.16,205.1,10.01215937]
[1757106756653,7.6,205.15,205.1,10.01215937]
[1757106757050,2.13215937,205.12,205.09,0.03084327]
[1757106757250,7.6,205.11,205.09,0.03084327]
[1757106757852,2.13215937,205.12,205.09,0.03084327]
[1757106758055,9.73215937,205.1,205.09,0.03084327]
[1757106760852,7.6,205.1,205.09,0.03084327]
[1757106763952,7.59677901,205.15,205.09,0.03084327]
[1757106764351,7.6,205.14,205.09,0.03084327]
[1757106764759,7.59677901,205.15,205.09,0.03084327]
[1757106765264,5.46461964,205.15,205.1,2.13215937]
[1757106765563,7.6,205.14,205.1,10.01215937]
[1757106765767,5.46461964,205.15,205.1,7.88]
[1757106765959,7.6,205.14,205.1,7.88]
[1757106766360,5.46461964,205.16,205.1,7.88]
[1757106766757,7.6,205.15,205.1,7.88]
[1757106767164,5.46461964,205.16,205.12,2.13215937]
[1757106767365,5.46461964,205.16,205.1,10.01215937]
[1757106767564,13.06461964,205.16,205.1,10.01215937]
[1757106771280,7.6,205.16,205.1,10.01215937]
[1757106772777,7.6,205.16,205.12,2.13215937]
[1757106772971,7.6,205.16,205.13,7.54]
[1757106773580,5.46461964,205.18,205.12,2.13215937]
[1757106774079,8.13,205.17,205.12,2.13215937]
[1757106774380,8.13,205.17,205.1,2.13215937]
[1757106775477,2.13215937,205.16,205.1,2.13215937]
[1757106776179,8.13,205.15,205.1,2.13215937]
[1757106776373,2.13215937,205.16,205.1,2.13215937]
[1757106776577,2.13215937,205.14,205.09,0.03084327]
[1757106777276,8.13,205.13,205.09,0.03084327]
[1757106777480,2.13215937,205.14,205.09,0.03084327]
[1757106777877,25.84461964,205.17,205.1,7.54]
[1757106777878,8.13,205.13,205.1,7.54]
[1757106778283,8.13,205.13,205.11,2.13215937]
[1757106778982,5.46461964,205.16,205.11,2.13215937]
[1757106779285,8.13,205.15,205.11,9.67215937]
[1757106780378,5.46461964,205.16,205.11,9.67215937]
[1757106780781,8.13,205.15,205.11,9.67215937]
[1757106780979,5.46461964,205.16,205.11,9.67215937]
[1757106781179,8.13,205.15,205.11,9.67215937]
[1757106781380,5.46461964,205.16,205.11,9.67215937]
[1757106781882,8.13,205.15,205.11,9.67215937]
[1757106782082,5.46461964,205.16,205.11,9.67215937]
[1757106782283,8.13,205.15,205.11,9.67215937]
[1757106783485,5.46461964,205.16,205.11,9.67215937]
[1757106783680,8.13,205.15,205.11,9.67215937]
[1757106785682,8.13,205.15,205.12,7.54]
[1757106786286,5.46461964,205.18,205.14,7.54]
[1757106786490,13.59461964,205.19,205.15,9.67215937]
[1757106786684,8.13,205.18,205.15,9.67215937]
[1757106786883,8.13,205.18,205.15,9.70739066]
[1757106787087,8.13,205.18,205.16,7.54]
[1757106790491,5.46461964,205.19,205.16,7.54]
[1757106791296,13.59461964,205.19,205.16,7.54]
[1757106792288,8.13,205.19,205.16,7.54]
[1757106792491,13.59461964,205.19,205.16,7.54]
[1757106792694,8.13,205.19,205.16,7.54]
[1757106794892,8.13,205.19,205.15,0.03523129]
[1757106794893,2.13215937,205.17,205.15,0.03523129]
[1757106795089,8.13,205.16,205.15,0.03523129]
[1757106795297,13.59461964,205.16,205.15,0.03523129]
[1757106796895,8.13,205.16,205.15,0.03523129]
[1757106800996,8.61,205.16,205.05,7.82]
[1757106801203,7.95,205.1,205.05,7.82]
[1757106801403,10.08215937,205.09,205.05,7.82]
[1757106801604,10.08215937,205.09,205.03,7.82]
[1757106802596,0.0356529,205.08,205.02,2.13215937]
[1757106803001,0.0356529,205.08,205.03,7.82]
[1757106803204,0.0356529,205.08,205.02,2.13215937]
[1757106803402,0.0356529,205.08,204.98,3.33216027]
[1757106803403,7.95,205.07,204.98,3.33216027]
[1757106803703,7.95,205.07,204.99,7.82]
[1757106804408,7.95,205.07,205.0,7.82]
[1757106805106,0.0356529,205.08,205.0,7.82]
[1757106806907,0.0356529,205.08,205.03,7.82]
[1757106807108,0.0356529,205.08,205.02,3.33216027]
[1757106807305,7.95,205.1,205.03,7.82]
[1757106812313,7.95,205.1,205.0,7.82]
[1757106826823,7.95,205.1,204.98,11.15216027]
[1757106827226,3.33216027,205.08,204.98,7.82]
[1757106827628,7.95,205.07,204.95,7.82]
[1757106827824,3.33216027,205.05,204.95,7.82]
[1757106828027,7.95,205.04,204.95,7.82]
[1757106829332,11.28216027,205.04,204.95,7.82]
[1757106829822,7.95,205.04,204.96,3.33216027]
[1757106830023,7.95,205.04,204.97,7.89]
[1757106840555,7.62,205.08,204.99,3.33216027]
[1757106840750,7.62,205.08,205.0,7.89]
[1757106840950,13.09500565,205.11,205.0,7.89]
[1757106841451,13.09500565,205.11,205.01,7.89]
[1757106842751,7.62,205.11,205.01,7.89]
[1757106843252,13.09500565,205.11,205.01,7.89]
[1757106844652,7.62,205.11,205.01,7.89]
[1757106845456,13.09500565,205.11,205.01,7.89]
[1757106845655,7.62,205.11,205.01,7.89]
[1757106849551,0.0340209,205.08,205.04,0.03559298]
[1757106849753,0.0340209,205.08,205.05,7.89]
[1757106850251,0.0340209,205.08,205.04,0.03559298]
[1757106850550,0.0340209,205.08,205.05,7.89]
[1757106850751,0.0340209,205.08,205.04,0.03559298]
[1757106850957,0.0340209,205.08,205.05,7.89]
[1757106851152,0.0340209,205.08,205.04,0.03559298]
[1757106852052,0.0340209,205.08,205.05,7.89]
[1757106852249,0.0340209,205.08,205.04,0.03559298]
[1757106852552,0.0340209,205.08,205.05,7.89]
[1757106852752,0.0340209,205.08,205.04,0.03559298]
[1757106853147,0.0340209,205.08,205.05,7.89]
[1757106853553,0.0340209,205.08,205.04,0.03559298]
[1757106853954,0.0340209,205.08,205.05,7.89]
[1757106854247,0.0340209,205.08,205.04,0.03559298]
[1757106854656,0.0340209,205.08,205.05,7.89]
[1757106855255,0.0340209,205.08,205.05,11.22216027]
[1757106855454,0.0340209,205.08,205.05,3.33216027]
[1757106855653,0.0340209,205.08,205.06,7.89]
[1757106856154,0.0340209,205.08,205.05,3.33216027]
[1757106856355,0.0340209,205.08,205.06,7.89]
[1757106859162,0.0340209,205.08,205.06,8.37]
[1757106860656,0.0340209,205.08,205.04,0.03559298]
[1757106860865,0.0340209,205.08,205.05,7.48]
[1757106861062,0.0340209,205.08,205.04,0.03559298]
[1757106861262,0.0340209,205.08,205.05,7.48]
[1757106861462,0.0340209,205.08,205.04,0.03559298]
[1757106861765,0.0340209,205.08,205.05,7.48]
[1757106862254,0.0340209,205.08,205.04,0.03559298]
[1757106863157,0.0340209,205.08,205.05,7.48]
[1757106863357,0.0340209,205.08,205.04,0.03559298]
[1757106863564,0.0340209,205.08,205.05,7.48]
[1757106863759,0.0340209,205.08,205.04,0.03559298]
[1757106863966,0.0340209,205.08,205.05,7.48]
[1757106864368,0.0340209,205.08,205.04,0.03559298]
[1757106865167,0.0340209,205.08,205.05,7.48]
[1757106865467,0.0340209,205.08,205.05,2.13150377]
[1757106866568,0.0340209,205.08,205.06,7.48]
[1757106867768,0.0340209,205.08,205.07,9.61150377]
[1757106875476,7.73,205.2,205.14,2.13150377]
[1757106875867,7.73,205.2,205.13,7.48]
[1757106875868,7.73,205.2,205.16,2.13150377]
[1757106876077,7.73,205.23,205.16,2.13150377]
[1757106876473,7.73,205.23,205.17,0.03626986]
[1757106880977,7.73,205.24,205.18,9.61150377]
[1757106884576,7.73,205.24,205.19,2.13150377]
[1757106884775,7.73,205.25,205.19,2.13150377]
[1757106893879,7.73,205.25,205.18,7.9]
[1757106894087,7.43,205.24,205.18,10.03150377]
[1757106896884,7.43,205.24,205.18,9.83150377]
[1757106898080,7.43,205.25,205.18,9.83150377]
[1757106901288,5.47500565,205.3,205.2,2.13150377]
[1757106901491,7.43,205.29,205.24,2.13150377]
[1757106901689,7.43,205.31,205.24,2.13150377]
[1757106901892,7.43,205.31,205.24,2.16806161]
[1757106904297,2.13150377,205.33,205.26,2.13150377]
[1757106904501,9.56150377,205.33,205.26,2.13150377]
[1757106906004,7.43,205.33,205.26,2.13150377]
[1757106906703,7.43,205.33,205.25,7.9]
[1757106906894,7.43,205.33,205.27,2.13150377]
[1757106907998,7.43,205.33,205.29,2.13150377]
[1757106908202,2.13150377,205.36,205.29,2.13150377]
[1757106908203,7.43,205.35,205.29,2.13150377]
[1757106908698,119.76,205.37,205.3,0.03477546]
[1757106908902,7.43,205.37,205.3,0.03477546]
[1757106911402,127.17,205.37,205.3,0.03477546]
[1757106911603,7.43,205.33,205.3,0.03477546]
[1757106911902,2.13150377,205.34,205.3,0.03477546]
[1757106912103,7.43,205.33,205.3,0.03477546]
[1757106912302,2.13150377,205.34,205.3,0.03477546]
[1757106913502,7.43,205.33,205.3,0.03477546]
[1757106913697,2.13150377,205.34,205.3,0.03477546]
[1757106913904,7.43,205.33,205.3,0.03477546]
[1757106914104,2.13150377,205.34,205.3,0.03477546]
[1757106914505,2.13150377,205.32,205.3,0.03477546]
[1757106914705,7.43,205.31,205.3,0.03477546]
[1757106918208,120.18,205.31,205.19,10.03150377]
[1757106918510,7.76,205.25,205.19,7.9]
[1757106918907,2.13150377,205.24,205.08,4.3881]
[1757106919111,2.13150377,205.24,205.03,68.2753]
[1757106919112,7.76,205.21,205.14,2.13150377]
[1757106919304,7.76,205.24,205.18,2.13150377]
[1757106919514,7.76,205.24,205.19,7.92]
[1757106919814,7.76,205.24,205.18,2.13150377]
[1757106920014,7.76,205.24,205.18,10.05150377]
[1757106922416,7.76,205.24,205.03,73.72923185]
[1757106922417,7.76,205.23,205.16,2.13150377]
[1757106922716,2.13150377,205.2,205.12,10.05150377]
[1757106923016,7.76,205.19,205.12,10.05150377]
[1757106924010,2.13150377,205.18,205.12,7.92]
[1757106924219,7.76,205.17,205.1,2.13150377]
[1757106925316,7.76,205.15,205.09,7.92]
[1757106927822,7.76,205.15,205.03,7.92]
[1757106928920,3.32945442,205.13,205.03,7.92]
[1757106929112,3.32945442,205.13,205.01,98.79696397]
[1757106929722,3.32945442,205.13,204.99,3.32945442]
[1757106930420,3.32945442,205.1,204.99,3.32945442]
[1757106930921,3.32945442,205.1,204.98,119.7]
[1757106931621,3.32945442,205.1,204.96,3.32945442]
[1757106931818,3.32945442,205.1,204.97,3.12]
[1757106932221,3.32945442,205.1,204.96,3.32945442]
[1757106932422,3.32945442,205.1,204.97,12.8]
[1757106934022,3.32945442,205.1,204.96,3.32945442]
[1757106934824,3.32945442,205.07,204.96,3.32945442]
[1757106935823,3.32945442,205.07,204.93,3.32945442]
[1757106937927,3.32945442,205.07,204.92,6.36945442]
[1757106938424,3.32945442,205.04,204.92,3.32945442]
[1757106938626,3.32945442,205.04,204.89,101.42963951]
[1757106939324,6.78945442,205.04,204.89,101.42963951]
[1757106939528,6.78945442,205.04,204.89,98.10018509]
[1757106939722,6.78945442,205.04,204.86,27.08]
[1757106939723,3.32945442,205.01,204.88,3.32945442]
[1757106941019,3.32945442,204.98,204.86,27.08]
[1757106949137,3.32945442,204.98,204.86,30.40945442]
[1757106949832,16.88,205.0,204.86,30.40945442]
[1757106950136,3.32945442,204.98,204.86,30.40945442]
[1757106954339,7.47,204.97,204.87,7.56]
[1757106957834,7.47,204.97,204.87,11.9526]
[1757106958039,7.47,204.97,204.88,7.56]
[1757106960143,3.32945442,205.01,204.9,7.56]
[1757106960144,9.34,205.01,204.9,7.56]
[1757106960844,10.79945442,205.02,204.9,11.9519]
[1757106961145,10.79945442,205.02,204.92,7.56]
[1757106968250,7.47,205.02,204.92,7.56]
[1757106977650,7.47,205.06,204.94,3.32945442]
[1757106977849,7.47,205.06,204.95,7.56]
[1757106979048,7.47,205.06,204.98,7.97]
[1757106980254,7.47,205.06,204.97,7.71985442]
[1757106980255,0.03511135,205.04,205.0,0.03482283]
[1757106980454,0.03511135,205.04,205.01,7.97]
[1757106980653,0.03511135,205.04,205.0,0.03482283]
[1757106980855,0.03511135,205.04,205.01,7.97]
[1757106981252,0.03511135,205.04,205.0,0.03482283]
[1757106982153,0.03511135,205.04,205.01,7.97]
[1757106984961,8.08511135,205.04,205.01,7.97]
[1757106985160,0.03511135,205.04,205.01,7.97]